Cogmind - Beta 11.1 @@@ ROGUE MODE // 2022.05.03 @ 22:01:22 Player: Okkudo Result: Destroyed by as-44839 with Assembled Maul Performance ------------- Evolutions (0) 0 Regions Visited (4) 800 Robots Destroyed (15) 75 Value Destroyed (191) 191 Prototype IDs (24) 480 Alien Tech Used (0) 0 Bonus (300) 300 TOTAL SCORE: 1846 Bonus ------- Aligned with FarCom 300 Cogmind --------- Core Integrity 0/250 Matter 204/300 Energy 125/125 System Corruption 0% Temperature Cool (0) Movement Rolling (115) Ox1 Location -9/Mines Parts ------- > --- POWER (1) -------- Light Ion Engine > --- PROPULSION (2) --- Compact Wheel > --- UTILITY (2) ------ Medium Storage Unit 0b10 Alert Chip > --- WEAPON (2) ------- Light Assault Rifle Rocket Launcher > --- INVENTORY (10) --- Medium Storage Unit Sensor Drone Bay (20/20) Medium Laser Light Assault Rifle Light Assault Rifle Grenade Launcher Grenade Launcher Mining Laser Hammer Peak State ------------ > --- POWER ------------ Light Ion Engine > --- PROPULSION ------- Flight Unit Flight Unit > --- UTILITY ---------- Small Storage Unit Sensor Drone Bay > --- WEAPON ----------- Light Assault Rifle Light Assault Rifle > --- INVENTORY -------- Signal Interpreter Medium Laser Light Assault Rifle Mining Laser Hammer [Rating: 14] Favorites ----------- Power Light Ion Engine Engine Light Ion Engine Propulsion Light Treads Treads Light Treads Wheel Compact Wheel Flight Unit Flight Unit Utility Small Storage Unit Device Sensor Drone Bay Storage Small Storage Unit Processor Signal Interpreter Weapon Light Assault Rifle Energy Gun Medium Laser Ballistic Gun Light Assault Rifle Launcher Rocket Launcher Build | -11 -10 -10 -10 -9 ------- Run | Scr Mat Min Exi Min Slots Evolved . | . . . . . Power . | . . . . . Propulsion . | . . . . . Utility . | . . . . . Weapon . | . . . . . Parts Attached 23 | 7 . 14 1 1 Power 4 | 1 . 3 . . Engine 4 | 1 . 3 . . Core . | . . . . . Reactor . | . . . . . Propulsion 6 | 2 . 4 . . Treads 2 | 2 . . . . Leg . | . . . . . Wheel 1 | . . 1 . . Hover . | . . . . . Flight 3 | . . 3 . . Utility 6 | 1 . 4 1 . Device 2 | . . 2 . . Storage 2 | 1 . 1 . . Processor 2 | . . 1 1 . Hackware . | . . . . . Protection . | . . . . . Artifact . | . . . . . Weapon 7 | 3 . 3 . 1 Energy Gun 1 | 1 . . . . Energy Cannon . | . . . . . Ballistic Gun 5 | 2 . 3 . . Ballistic Cannon . | . . . . . Launcher 1 | . . . . 1 Special Weapon . | . . . . . Impact Weapon . | . . . . . Slashing Weapon . | . . . . . Piercing Weapon . | . . . . . Special Melee Weapon . | . . . . . Unidentified Prototypes 2 | . . 1 1 . Parts Lost 7 | . . 7 . . Power 1 | . . 1 . . Propulsion 3 | . . 3 . . Utility 1 | . . 1 . . Weapon 2 | . . 2 . . Highest Loss Streak 6 | . . 6 . . To Critical Strikes . | . . . . . Average Slot Usage (%) 87 | . 85 91 85 85 Engine 13 | . 14 13 14 14 Treads 10 | . 28 . . . Wheel 4 | . . . 14 14 Flight 7 | . . 22 . . Device 1 | . . 4 . . Storage 14 | . 14 14 14 14 Processor 6 | . . 5 14 14 Energy Gun 4 | . 14 . . . Ballistic Gun 22 | . 14 28 28 18 Naked Turns . | . . . . . Heaviest Build 24 | 12 12 24 15 18 Greatest Support 40 | 40 40 20 16 16 Greatest Overweight (x) 3 | . . 3 . 1 Average Overweight (x) . | . . 1 . . Largest Inventory Capacity 10 | 8 8 10 10 10 Average Capacity 8 | 6 8 8 10 10 Most Carried 9 | 5 6 9 9 9 Average Carried 5 | 1 3 5 8 8 Final Capacity 10 | 8 8 10 10 10 Final Carried 9 | 1 6 8 8 9 Class Distribution -------------------- 74% | Mutant 25% | Scavenger-Mutant Dominant Class ---------------- Mutant | -10/Materials Scavenger-Mutant | -10/Mines Mutant | -10/Exiles Mutant | -9/Mines Resources | -11 -10 -10 -10 -9 ----------- Run | Scr Mat Min Exi Min Matter Collected 493 | 204 138 151 . . Remotely . | . . . . . Salvage Created 464 | . 317 117 . 30 Parts 31 | . 14 17 . . Haulers Intercepted . | . . . . . Recyclers Shooed 2 | . 2 . . . Parts Field Recycled . | . . . . . Retrieved Matter . | . . . . . Parts Self-Destructed . | . . . . . Prevented . | . . . . . Kills | -11 -10 -10 -10 -9 ------- Run | Scr Mat Min Exi Min Combat Hostiles Destroyed 17 | . 2 8 . 7 Guns 11 | . 2 8 . 1 AOE 6 | . . . . 6 Classes Destroyed 6 | . 4 1 . 1 Worker 2 | . 2 . . . Recycler 2 | . 2 . . . Watcher 1 | . 1 . . . Swarmer 8 | . . 8 . . Grunt 2 | . 2 . . . Assembled 7 | . . . . 7 Best Kill Streak 7 | . 3 5 . 7 Combat Bots Only 7 | . 2 5 . 7 Max Kills in Single Turn 3 | . 1 1 . 3 Gunslinging . | . . . . . Exploded 3 | . . . . 3 Melee . | . . . . . Uniques/NPCs Destroyed . | . . . . . Combat | -11 -10 -10 -10 -9 -------- Run | Scr Mat Min Exi Min Damage Taken 988 | . 219 703 . 66 Core 272 | . 66 153 . 53 Absorbed by Shields . | . . . . . Core Remaining (%) 100 | 100 . . . . Volleys Fired 59 | . 24 31 . 4 Largest 2 | . 2 2 . 2 Hottest 70 | . 70 40 . 53 Shots Fired 116 | . 48 60 . 8 Gun 112 | . 48 60 . 4 Cannon . | . . . . . Launcher 4 | . . . . 4 Special . | . . . . . Kinetic 88 | . 24 60 . 4 Thermal 24 | . 24 . . . Explosive 4 | . . . . 4 Electromagnetic . | . . . . . Robot Hit Streak 15 | . 15 4 . 5 Robot Miss Streak 6 | . 4 6 . . Penetration Max . | . . . . . Secondary Targets 2 | . . 2 . . Max Gunslinging Chain 1 | . . 1 . . Shots Hit Robots 64 | . 34 25 . 5 Core Hits 40 | . 14 11 . 15 Critical Kills . | . . . . . Critical Parts Destroyed 2 | . 1 1 . . Critical Strikes 7 | . 6 1 . . Burn 5 | . 5 . . . Destroy 2 | . 1 1 . . Melee Attacks . | . . . . . Impact . | . . . . . Slashing . | . . . . . Piercing . | . . . . . Sneak Attacks . | . . . . . Combat Hostiles . | . . . . . Follow-up Attacks . | . . . . . Damage Inflicted 1126 | . 491 243 . 392 Guns 760 | . 491 243 . 26 Cannons . | . . . . . Explosions 366 | . . . . 366 Melee . | . . . . . Ramming . | . . . . . Kinetic 509 | . 240 243 . 26 Thermal 251 | . 251 . . . Explosive 366 | . . . . 366 Electromagnetic . | . . . . . Impact . | . . . . . Slashing . | . . . . . Piercing . | . . . . . Highest Corruption . | . . . . . Average Corruption . | . . . . . Corruption Purged . | . . . . . Corruption Blocked . | . . . . . Overload Shots . | . . . . . Overflow Damage . | . . . . . Projectiles . | . . . . . Explosions . | . . . . . Melee . | . . . . . Knockbacks . | . . . . . Impact . | . . . . . Kinetic . | . . . . . Secondary . | . . . . . Self-Inflicted Damage . | . . . . . Shots . | . . . . . Rammed . | . . . . . Targets Rammed . | . . . . . Kicked . | . . . . . Crushed . | . . . . . Highest Temperature 129 | . 129 8 . 24 Average Temperature 29 | . 39 3 . 11 Received Heat Transfer 126 | . 126 . . . Siege Activations . | . . . . . Robots Corrupted . | . . . . . Combat Hostiles . | . . . . . Parts Fried . | . . . . . Impact Corruptions . | . . . . . Robots Melted . | . . . . . Combat Hostiles . | . . . . . Parts Melted . | . . . . . Heat Transferred 1110 | . 1110 . . . Parts Sabotaged . | . . . . . Parts Stolen . | . . . . . Parts Stripped . | . . . . . Power Chain Reactions . | . . . . . Missiles Intercepted . | . . . . . Alert | -11 -10 -10 -10 -9 ------- Run | Scr Mat Min Exi Min Peak Influence 166 | . 61 166 . 66 Initial 16 | . . 16 . . Average 46 | . 9 88 . 26 Maximum Alert Level . | . . . . . Low Security (%) 100 | 100 100 100 . 100 Level 1 . | . . . . . Level 2 . | . . . . . Level 3 . | . . . . . Level 4 . | . . . . . Level 5 . | . . . . . High Security . | . . . . . Max Security . | . . . . . Squads Dispatched . | . . . . . Investigation . | . . . . . Extermination . | . . . . . Reinforcement . | . . . . . Assault . | . . . . . Garrison . | . . . . . Intercept . | . . . . . Searches Triggered . | . . . . . Construction Impeded . | . . . . . Haulers Reinforced . | . . . . . Active Scanning Responses . | . . . . . Cargo Convoy Interrupts . | . . . . . Stealth | -11 -10 -10 -10 -9 --------- Run | Scr Mat Min Exi Min Distress Signals . | . . . . . Communications Jammed . | . . . . . Distress Signals . | . . . . . Times Spotted 25 | . 8 9 . 8 Peak Tracking Total 7 | . 5 5 . 7 Tactical Retreats 1 | . . 1 . . Traps | -11 -10 -10 -10 -9 ------- Run | Scr Mat Min Exi Min Traps Triggered . | . . . . . Indirectly . | . . . . . Trap Hack Attempts . | . . . . . Triggered . | . . . . . Disarmed . | . . . . . Reprogrammed . | . . . . . Reused . | . . . . . Traps Extracted . | . . . . . Installed . | . . . . . Triggered . | . . . . . Machines | -11 -10 -10 -10 -9 ---------- Run | Scr Mat Min Exi Min Machines Disabled . | . . . . . Max in Single Turn . | . . . . . Machines Sabotaged . | . . . . . Garrisons Compromised . | . . . . . Overloaded Fab Kills . | . . . . . Hacking | -11 -10 -10 -10 -9 --------- Run | Scr Mat Min Exi Min Machines Accessed 5 | . 3 1 1 . Terminals 3 | . 3 . . . Fabricators . | . . . . . Repair Stations . | . . . . . Recycling Units . | . . . . . Scanalyzers . | . . . . . Garrison Access . | . . . . . Total Hacks 15 | . 13 1 1 . Successful 9 | . 7 1 1 . Failed 6 | . 6 . . . Catastrophic 1 | . 1 . . . Database Lockouts . | . . . . . Manual 7 | . 6 . 1 . Terminals 13 | . 13 . . . Fabricators . | . . . . . Repair Stations . | . . . . . Recycling Units . | . . . . . Scanalyzers . | . . . . . Garrison Access . | . . . . . Terminal Hacks 8 | . 6 1 1 . Record 1 | . 1 . . . Open Door 1 | . . 1 . . Terminal Index 1 | . 1 . . . Alert Level 1 | . 1 . . . Unreport Threat 1 | . 1 . . . Locate Traps 1 | . 1 . . . Zone Layout 1 | . 1 . . . EX-Prototype ID Bank 1 | . . . 1 . Fabricator Hacks . | . . . . . Repair Station Hacks . | . . . . . Recycling Unit Hacks . | . . . . . Scanalyzer . | . . . . . Garrison Access Hacks . | . . . . . Unauthorized Hacks 1 | . 1 . . . Terminals 1 | . 1 . . . Botnet 1 | . 1 . . . Fabricators . | . . . . . Repair Stations . | . . . . . Recycling Units . | . . . . . Scanalyzers . | . . . . . Garrison Access . | . . . . . Data Cores Recovered . | . . . . . Used . | . . . . . Hacking Detections 2 | . 2 . . . Full Trace Events 1 | . 1 . . . Feedback Events . | . . . . . Feedback Blocked . | . . . . . Robot Schematics Acquired . | . . . . . Robots Built . | . . . . . Authchips . | . . . . . Time . | . . . . . Total Robot Build Rating . | . . . . . Part Schematics Acquired . | . . . . . Parts Built . | . . . . . Authchips . | . . . . . Time . | . . . . . Total Part Build Rating . | . . . . . Parts Repaired . | . . . . . Time . | . . . . . Parts Recycled . | . . . . . Recycled Matter . | . . . . . Retrieved Matter . | . . . . . Retrieved Components . | . . . . . Parts Scanalyzed . | . . . . . Part Schematics Acquired . | . . . . . Parts Damaged . | . . . . . Bothacking | -11 -10 -10 -10 -9 ------------ Run | Scr Mat Min Exi Min Used RIF Installer . | . . . . . Robots Hacked . | . . . . . Non-combat . | . . . . . Combat . | . . . . . Robot Hacks Applied . | . . . . . Relay Couplers Released . | . . . . . Fabnet Peak Effective % . | . . . . . Robots Rewired . | . . . . . Allies Hacked . | . . . . . Hacks Repelled . | . . . . . Allies | -11 -10 -10 -10 -9 -------- Run | Scr Mat Min Exi Min Total Allies . | . . . . . Largest Group . | . . . . . Highest-Rated Group . | . . . . . Highest-Rated Ally . | . . . . . Total Orders 21 | . . 21 . . EXPLORE 20 | . . 20 . . RETURN 1 | . . 1 . . Ally Attacks . | . . . . . Total Damage . | . . . . . Kills . | . . . . . Allies Corrupted . | . . . . . Allies Melted . | . . . . . Intel | -11 -10 -10 -10 -9 ------- Run | Scr Mat Min Exi Min Robot Analysis Total . | . . . . . Derelict Logs Recovered 3 | . . 2 . 1 Drone Launches 20 | . . 20 . . Drone Recoveries 20 | . . 20 . . Exploration | -11 -10 -10 -10 -9 ------------- Run | Scr Mat Min Exi Min Turns Passed 1861 | 48 635 625 524 29 Spaces Moved 1260 | 39 337 348 522 14 Core 39 | 24 . 15 . . Treads 353 | 15 337 1 . . Legs . | . . . . . Wheels 562 | . . 26 522 14 Hover . | . . . . . Flight 306 | . . 306 . . Fastest Speed 50 | 50 160 100 100 100 Average Speed 125 | 92 160 134 100 103 Slowest Speed 200 | 160 160 200 100 115 Overloaded Moves . | . . . . . Propulsion Burnouts . | . . . . . Robots Hopped . | . . . . . Cave-ins Triggered . | . . . . . Exploration Rate (%) 52 | 4 56 99 92 12 Regions Visited 4 Branch Regions 3 Pre-discovered Areas 1 | . . 1 . . Known Exits Taken 1 | . . 1 . . Unknown Exits Taken 3 | 1 1 . 1 . Scrap Searched . | . . . . . Spaces Dug . | . . . . . Terrain Destroyed 46 | . . . . 46 Melee . | . . . . . Projectile . | . . . . . AOE 46 | . . . . 46 Terrain Rammed . | . . . . . Walls Destroyed . | . . . . . Machines Disabled . | . . . . . Actions | -11 -10 -10 -10 -9 --------- Run | Scr Mat Min Exi Min Total 1436 | 50 385 456 524 21 Wait 64 | . 20 43 . 1 Move 1256 | 38 336 347 521 14 Hop . | . . . . . Pick Up 26 | 5 5 14 1 1 Fast Attach 2 | 2 . . . . Attach 15 | 4 . 10 1 . Detach 1 | . . 1 . . Swap 6 | 1 . 4 . 1 Drop 7 | . . 6 1 . Fire 59 | . 24 31 . 4 Melee . | . . . . . Ram . | . . . . . Kick . | . . . . . Crush . | . . . . . Escape Stasis . | . . . . . Rewire . | . . . . . Trap . | . . . . . Miscellaneous . | . . . . . Route ------- -11/Scrapyard -10/Materials (discovered 4 exits: *Mat x2 / *Min x2) -10/Mines (discovered 3 exits: *Mat x2 / *Exi) -10/Exiles -9/Mines History --------- Turn | Location | Event 9 | -11/Scrapyard | Discovered new exit (range 16) 49 | -11/Scrapyard | Entered Materials 197 | -10/Materials | Discovered new exit (range 14) 221 | -10/Materials | Discovered new exit (range 10) 314 | -10/Materials | Discovered new exit (range 17) 316 | -10/Materials | Build established: Mutant 506 | -10/Materials | Discovered new exit (range 10) 684 | -10/Materials | Entered Mines 713 | -10/Mines | Core integrity fell below 50% 766 | -10/Mines | Lost 6 parts (1p2n1u2w) 801 | -10/Mines | Learned 4 Materials zone layouts 807 | -10/Mines | Core integrity fell below 20% 888 | -10/Mines | Found the Drone Emporium 894 | -10/Mines | Found Prototype Device 895 | -10/Mines | Identified Sensor Drone Bay 931 | -10/Mines | Discovered new exit (range 37) 951 | -10/Mines | Learned location of Storage (-8) 962 | -10/Mines | Discovered new exit (range 74) 964 | -10/Mines | Identified exit to Materials 1023 | -10/Mines | YI-UF0 nonchalantly dropped a Grenade Launcher on the ground 1147 | -10/Mines | Build established: Scavenger-Mutant 1202 | -10/Mines | Learned 4 Materials zone layouts 1305 | -10/Mines | Deemed a non-threat by the Exiles lab entrance 1305 | -10/Mines | Discovered new exit (range 5) 1308 | -10/Mines | Identified exit to Exiles 1309 | -10/Mines | Entered Exiles 1332 | -10/Exiles | Met 8R-AWN 1350 | -10/Exiles | Met EX-HEX 1404 | -10/Exiles | Met EX-DEC 1462 | -10/Exiles | Met EX-BIN 1473 | -10/Exiles | Aligned with FarCom system 1474 | -10/Exiles | Given EX-Vault access code 1502 | -10/Exiles | Opened EX-Vault 1506 | -10/Exiles | Found Prototype Processor 1508 | -10/Exiles | Identified 0b10 Alert Chip 1533 | -10/Exiles | Warned to stay clear of 0b10 Research branches 1567 | -10/Exiles | Build established: Mutant 1597 | -10/Exiles | Visited The Gauntlet 1756 | -10/Exiles | Discovered new exit (range 11) 1833 | -10/Exiles | Left Exiles lab with 0b10 Alert Chip 1833 | -10/Exiles | Entered Mines 1834 | -9/Mines | Assembled infested the area 1838 | -9/Mines | Learned 4 Materials zone layouts 1840 | -9/Mines | Received a Rocket Launcher from a helpful Derelict 1862 | -9/Mines | Destroyed by as-44839 with Assembled Maul Last Messages --------------- 01836_ ZX-QFC(g): "They are crazy." 01837_ ZX-QFC(g): "Everyone knows a good old rocket launcher goes a long way." 01838_ ZX-QFC(g): "Need to get rid of a swarm? Done. Need a big hole in the wall? Done." 01838_ Acquired derelict log, extracted data. Data stored: Materials zone layouts (x4). 01839_ ZX-QFC(g): "Need a small hole in the wall? Leave that to the mining laser wimps, I say!" 01840_ ZX-QFC(g): "Would you like a rocket launcher? I know I would if I were you, so I'm going to lend you mine." 01840_ ZX-QFC(g) slips back into the shadows. 01845_ Acquired Rocket Launcher. 01848_ as-27120 destroyed. 01851_ as-43864 destroyed. 01854_ as-46752 destroyed. 01854_ K-01 Serf collects debris. 01856_ as-06021 destroyed. 01857_ K-01 Serf collects debris. 01859_ The unstable cave ceiling collapses. 01861_ K-01 Serf collects debris. Map ----- +----------------------------------------------------+ | ?????????????????????????????????????????????????? | | ?????????????????????????????????????????????????? | | ?????????????????????????????????????????????????? | | ?????????????????????????????????????????????????? | | ?????????????????????????????????????????????????? | | ?????????????????????????????????????????????????? | | ?????????????????????????????????????????????????? | | ?????????????????????????????????????????????????? | | ?????????????????????????????????????????????????? | | ?????????????????????????????????????????????????? | | ?????????????????????????????????????????????????? | | ?????????????????????????????????????????????????? | | ??????????? ###??????????????????????????????????? | | ????????????|%*??????????????????????????????????? | | ?????????????= ?????????????????????????????????? | | ??????????????# ????????????????????????????????? | | ?????????????## ???????????????????????????????? | | ???????????### # ??????????????????????????????? | | ???????????# ????????####?????????????????? | | ??????????## #?????? ??????????????????? | | ??????????# # ###??? #???????????????????? | | ??????????# %a #### #???##??????????????? | | ??????????# a ## ##?????????????? | | ????????????# # a a ##????????????? | | ????????????## # a k #????????????? | | ?????????????### # ### @ k #???????????? | | ?????????????????# #?## #??????????? | | ?????????????????# #??# #????????? | | ?????????????????# #?# ## ?????????? | | ?????????????????# ## ##????? ?????????? | | ?????????????????? #????????????????? | | ??????????????????#### #???????????????? | | ?????????????????????## #??????????????? | | ??????????????????????## #??????????????? | | ???????????????????????# ##??????????????? | | ??????????????????????? ####???????????????? | | ??????????????????????? ##??????????????????? | | ??????????????????????? #???????????????????? | | ??????????????????????? ##???????????????????? | | ???????????????????????# #????????????????????? | | ???????????????????????? ?????????????????????? | | ?????????????????????????????????????????????????? | | ?????????????????????????????????????????????????? | | ?????????????????????????????????????????????????? | | ?????????????????????????????????????????????????? | | ?????????????????????????????????????????????????? | | ?????????????????????????????????????????????????? | | ?????????????????????????????????????????????????? | | ?????????????????????????????????????????????????? | | ?????????????????????????????????????????????????? | +----------------------------------------------------+ Best States ------------- Heat Dissipation 25 Energy Generation 10 Energy Capacity 125 Matter Stores 300 Matter Capacity 300 Sight Range 16 Robot Scan Range 14 Terrain Scan Density 10 Evasion (%) 50 Recoil Reduction 2 Item Schematics ----------------- None Robot Schematics ------------------ None Fabricated ------------ Nothing Alien Tech Used ----------------- None Achievements -------------- Release The Drones! Challenges ------------ None Game ------ Seed ControlLaserPrototype Manual? 0 Play Time 00:24:50 Cumulative 32.4 hours Start 2022.05.03 @ 21:32:40 End 2022.05.03 @ 22:01:22 Sessions 1 Manual Loads 0 Difficulty Rogue Special Mode None Game No. 72 Rogue 72 Adventurer 0 Explorer 0 Win Type - Total 0 Types 0/0/0/0/0/0/0/0/0 Lore% 24 Gallery% 23 Achievement% 22 Wizard Run 0 Options --------- ASCII 0 Keyboard 0 Movement Mouse Keybinds 0 Fullscreen 1 Font 12/Smallcaps Map View 83x54 Tactical HUD 1 Map Filters NONE Filters NONE Steam 1 RUN: 4f3df84c-a1aa-4e7b-b7d1-e4a8ae5fe74e